{"text_format":"3","workbook":"xlsx","n_sheets":5,"sheets":["Pregled zabave","Popis gostiju","Hrana i piće","Ostale potrepštine","Rešetka rasporeda sjedenja"],"not_rendered":{"defined_names":9},"read":"whole","date_system":"1900"}

{"sheet":"Pregled zabave","index":0,"n_rows":21,"n_cols":8,"rows_kept":21,"merged":[[6,3,6,4],[6,5,6,6],[9,1,9,2],[12,1,12,2],[15,1,15,2]]}
[]
[]
[null,"Pregled zabave"]
[]
[]
[null,"DOGAĐAJ",null,"SAŽETAK GOSTIJU",{"$nulls":3},{"$f":"\"NERIJEŠENE POTVRDE DOLASKA: \"&NeriješenePotvrdeDolaska","v":"NERIJEŠENE POTVRDE DOLASKA: 2"}]
[null,"Bakin 75. rođendan",null,"PREGLED POTVRDA DOLASKA",null,"TROŠAK PO GOSTU",null,"IZNOS PRORAČUNA"]
[{"$nulls":3},"Potvrđeni gosti","Ukupno potvrđeno","Hrana","Ostalo","Ukupno"]
[null,"DATUM",null,"Odrasli",{"$f":"SUMIF(StolZaGosta[DOLAZI?],\"=Da\",StolZaGosta[ODRASLI])","v":26},{"$f":"StolZaHranu[[#Totals],[TROŠAK PO ODRASLOM]]","v":{"v":12.690089084110037,"d":"12.69 kn"}},{"$f":"OsnovniTrošakPoGostu","v":{"v":18.695652173913043,"d":"18.70 kn"}},{"$f":"(SažetakSudionika[[#This Row],[Hrana]]+SažetakSudionika[[#This Row],[Ostalo]])*UkupnoOdraslih","v":{"v":816.0292727086002,"d":"816.03 kn"}}]
[null,"2011-06-14",null,"Djeca",{"$f":"SUMIF(StolZaGosta[DOLAZI?],\"=Da\",StolZaGosta[DJECA])","v":20},{"$f":"StolZaHranu[[#Totals],[TROŠAK PO DJETETU]]","v":{"v":7.252884190656953,"d":"7.25 kn"}},{"$f":"OsnovniTrošakPoGostu","v":{"v":18.695652173913043,"d":"18.70 kn"}},{"$f":"(SažetakSudionika[[#This Row],[Hrana]]+SažetakSudionika[[#This Row],[Ostalo]])*UkupnoDjece","v":{"v":518.9707272914,"d":"518.97 kn"}}]
[{"$nulls":3},"Ukupno",{"$f":"SUBTOTAL(109,SažetakSudionika[Ukupno potvrđeno])","v":46},{"$f":"\"Prosjek     \"&TEXT(SUBTOTAL(101,SažetakSudionika[Hrana]),\"#.##0,00 kn\")","v":"Prosjek     9,97 kn"},{"$f":"\"Prosjek     \"&TEXT(SUBTOTAL(101,SažetakSudionika[Ostalo]),\"#.##0,00 kn\")","v":"Prosjek     18,70 kn"},{"$f":"SUBTOTAL(109,SažetakSudionika[Ukupno])","v":{"v":1335,"d":"1,335.00 kn"}}]
[null,"VRIJEME"]
[null,"14.00 do 16.00 h"]
[]
[null,"MJESTO",null,"SAŽETAK PRORAČUNA"]
[null,"Kuća tete Zrinke",null,"STAVKA","BROJ","IZNOS PRORAČUNA","UKUPNI TROŠAK","RAZLIKA"]
[{"$nulls":3},"Hrana i piće",{"$f":"COUNTA(StolZaHranu[ARTIKL HRANE ILI PIĆA])","v":18},{"v":500,"d":"500.00 kn"},{"$f":"StolZaHranu[[#Totals],[UKUPNI TROŠAK]]","v":{"v":475,"d":"475.00 kn"}},{"$f":"PregledProračuna[[#This Row],[IZNOS PRORAČUNA]]-PregledProračuna[[#This Row],[UKUPNI TROŠAK]]","v":{"v":25,"d":"25.00 kn"}}]
[{"$nulls":3},{"$f":"ZaglavljeTablice1","v":"Oprema i potrepštine"},{"$f":"COUNTA(TablicaProračuna1[Cijena])","v":7},{"v":400,"d":"400.00 kn"},{"$f":"TablicaProračuna1[[#Totals],[Cijena]]","v":{"v":400,"d":"400.00 kn"}},{"$f":"PregledProračuna[[#This Row],[IZNOS PRORAČUNA]]-PregledProračuna[[#This Row],[UKUPNI TROŠAK]]","v":{"v":0,"d":"0.00 kn"}}]
[{"$nulls":3},{"$f":"ZaglavljeTablice2","v":"Ukrasi"},{"$f":"COUNTA(TablicaProračuna2[Ukrasi])","v":4},{"v":150,"d":"150.00 kn"},{"$f":"TablicaProračuna2[[#Totals],[Cijena]]","v":{"v":175,"d":"175.00 kn"}},{"$f":"PregledProračuna[[#This Row],[IZNOS PRORAČUNA]]-PregledProračuna[[#This Row],[UKUPNI TROŠAK]]","v":{"v":-25,"d":"-25.00 kn"}}]
[{"$nulls":3},{"$f":"ZaglavljeTablice3","v":"Ostalo"},{"$f":"COUNTA(TablicaProračuna3[Ostalo])","v":4},{"v":300,"d":"300.00 kn"},{"$f":"TablicaProračuna3[[#Totals],[Cijena]]","v":{"v":285,"d":"285.00 kn"}},{"$f":"PregledProračuna[[#This Row],[IZNOS PRORAČUNA]]-PregledProračuna[[#This Row],[UKUPNI TROŠAK]]","v":{"v":15,"d":"15.00 kn"}}]
[{"$nulls":3},"Ukupno",{"$f":"SUBTOTAL(109,PregledProračuna[BROJ])","v":33},{"$f":"SUBTOTAL(109,PregledProračuna[IZNOS PRORAČUNA])","v":{"v":1350,"d":"1,350.00 kn"}},{"$f":"SUBTOTAL(109,PregledProračuna[UKUPNI TROŠAK])","v":{"v":1335,"d":"1,335.00 kn"}},{"$f":"SUBTOTAL(109,PregledProračuna[RAZLIKA])","v":{"v":15,"d":"15.00 kn"}}]

{"sheet":"Popis gostiju","index":1,"n_rows":22,"n_cols":12,"rows_kept":22}
[]
[]
[null,"Popis gostiju"]
[]
[]
[]
[null,"IME I PREZIME","ADRESA","GRAD","ŽUPANIJA","POŠTANSKI BROJ","TELEFON","E-POŠTA","DOLAZI?","DJECA","ODRASLI","UKUPNO"]
[null,"Obitelj 1","Adresa 1","Grad 1","Županija 1","Poštanski broj 1","Telefon 1","E-pošta 1","Ne",2,2,{"$f":"SUM(StolZaGosta[[#This Row],[DJECA]:[ODRASLI]])","v":4}]
[null,"Obitelj 2","Adresa 2","Grad 2","Županija 2","Poštanski broj 2","Telefon 2","E-pošta 2","Da",1,1,{"$f":"SUM(StolZaGosta[[#This Row],[DJECA]:[ODRASLI]])","v":2}]
[null,"Obitelj 3","Adresa 3","Grad 3","Županija 3","Poštanski broj 3","Telefon 3","E-pošta 3","Da",3,3,{"$f":"SUM(StolZaGosta[[#This Row],[DJECA]:[ODRASLI]])","v":6}]
[null,"Obitelj 4","Adresa 4","Grad 4","Županija 4","Poštanski broj 4","Telefon 4","E-pošta 4",null,null,2,{"$f":"SUM(StolZaGosta[[#This Row],[DJECA]:[ODRASLI]])","v":2}]
[null,"Obitelj 5","Adresa 5","Grad 5","Županija 5","Poštanski broj 5","Telefon 5","E-pošta 5","Da",4,3,{"$f":"SUM(StolZaGosta[[#This Row],[DJECA]:[ODRASLI]])","v":7}]
[null,"Obitelj 6","Adresa 6","Grad 6","Županija 6","Poštanski broj 6","Telefon 6","E-pošta 6","Da",2,2,{"$f":"SUM(StolZaGosta[[#This Row],[DJECA]:[ODRASLI]])","v":4}]
[null,"Obitelj 7","Adresa 7","Grad 7","Županija 7","Poštanski broj 7","Telefon 7","E-pošta 7","Da",1,4,{"$f":"SUM(StolZaGosta[[#This Row],[DJECA]:[ODRASLI]])","v":5}]
[null,"Obitelj 8","Adresa 8","Grad 8","Županija 8","Poštanski broj 8","Telefon 8","E-pošta 8","Ne",5,3,{"$f":"SUM(StolZaGosta[[#This Row],[DJECA]:[ODRASLI]])","v":8}]
[null,"Obitelj 9","Adresa 9","Grad 9","Županija 9","Poštanski broj 9","Telefon 9","E-pošta 9","Da",3,2,{"$f":"SUM(StolZaGosta[[#This Row],[DJECA]:[ODRASLI]])","v":5}]
[null,"Obitelj 10","Adresa 10","Grad 10","Županija 10","Poštanski broj 10","Telefon 10","E-pošta 10","Da",null,4,{"$f":"SUM(StolZaGosta[[#This Row],[DJECA]:[ODRASLI]])","v":4}]
[null,"Obitelj 11","Adresa 11","Grad 11","Županija 11","Poštanski broj 11","Telefon 11","E-pošta 11","Da",3,5,{"$f":"SUM(StolZaGosta[[#This Row],[DJECA]:[ODRASLI]])","v":8}]
[null,"Obitelj 12","Adresa 12","Grad 12","Županija 12","Poštanski broj 12","Telefon 12","E-pošta 12","Ne",2,3,{"$f":"SUM(StolZaGosta[[#This Row],[DJECA]:[ODRASLI]])","v":5}]
[null,"Obitelj 13","Adresa 13","Grad 13","Županija 13","Poštanski broj 13","Telefon 13","E-pošta 13","Da",3,2,{"$f":"SUM(StolZaGosta[[#This Row],[DJECA]:[ODRASLI]])","v":5}]
[null,"Obitelj 14","Adresa 14","Grad 14","Županija 14","Poštanski broj 14","Telefon 14","E-pošta 14","Ne",null,1,{"$f":"SUM(StolZaGosta[[#This Row],[DJECA]:[ODRASLI]])","v":1}]
[null,"Obitelj 15","Adresa 15","Grad 15","Županija 15","Poštanski broj 15","Telefon 15","E-pošta 15",null,null,2,{"$f":"SUM(StolZaGosta[[#This Row],[DJECA]:[ODRASLI]])","v":2}]

{"sheet":"Hrana i piće","index":2,"n_rows":25,"n_cols":10,"rows_kept":25}
[]
[]
[null,"Hrana i piće"]
[]
[null,"Unesite cijenu i procijenjene porcije da biste automatski izračunali ukupan broj komada i cijenu po porciji na temelju ukupnog broja gostiju"]
[null,"ARTIKL HRANE ILI PIĆA","UKUPNI TROŠAK","PORCIJA PO DJETETU","PORCIJA PO ODRASLOM","UKUPNO PORCIJA","TROŠAK PO PORCIJI","TROŠAK PO DJETETU","TROŠAK PO ODRASLOM","NAPOMENE"]
[null,"Sokovi",{"v":15,"d":"15.00 kn"},0.5,2,{"$f":"(StolZaHranu[[#This Row],[PORCIJA PO DJETETU]]*UkupnoDjece)+(StolZaHranu[[#This Row],[PORCIJA PO ODRASLOM]]*UkupnoOdraslih)","v":62},{"$f":"IFERROR(StolZaHranu[[#This Row],[UKUPNI TROŠAK]]/StolZaHranu[[#This Row],[UKUPNO PORCIJA]],\"\")","v":{"v":0.24193548387096775,"d":"0.24 kn"}},{"$f":"IFERROR(StolZaHranu[[#This Row],[TROŠAK PO PORCIJI]]*StolZaHranu[[#This Row],[PORCIJA PO DJETETU]],\"\")","v":{"v":0.12096774193548387,"d":"0.12 kn"}},{"$f":"IFERROR(StolZaHranu[[#This Row],[TROŠAK PO PORCIJI]]*StolZaHranu[[#This Row],[PORCIJA PO ODRASLOM]],\"\")","v":{"v":0.4838709677419355,"d":"0.48 kn"}},"Dvolitrenke"]
[null,"Sokovi",{"v":15,"d":"15.00 kn"},2,0,{"$f":"(StolZaHranu[[#This Row],[PORCIJA PO DJETETU]]*UkupnoDjece)+(StolZaHranu[[#This Row],[PORCIJA PO ODRASLOM]]*UkupnoOdraslih)","v":40},{"$f":"IFERROR(StolZaHranu[[#This Row],[UKUPNI TROŠAK]]/StolZaHranu[[#This Row],[UKUPNO PORCIJA]],\"\")","v":{"v":0.375,"d":"0.38 kn"}},{"$f":"IFERROR(StolZaHranu[[#This Row],[TROŠAK PO PORCIJI]]*StolZaHranu[[#This Row],[PORCIJA PO DJETETU]],\"\")","v":{"v":0.75,"d":"0.75 kn"}},{"$f":"IFERROR(StolZaHranu[[#This Row],[TROŠAK PO PORCIJI]]*StolZaHranu[[#This Row],[PORCIJA PO ODRASLOM]],\"\")","v":{"v":0,"d":"0.00 kn"}},"Jabuka i bijelo grožđe"]
[null,"Vino",{"v":50,"d":"50.00 kn"},0,2,{"$f":"(StolZaHranu[[#This Row],[PORCIJA PO DJETETU]]*UkupnoDjece)+(StolZaHranu[[#This Row],[PORCIJA PO ODRASLOM]]*UkupnoOdraslih)","v":52},{"$f":"IFERROR(StolZaHranu[[#This Row],[UKUPNI TROŠAK]]/StolZaHranu[[#This Row],[UKUPNO PORCIJA]],\"\")","v":{"v":0.9615384615384616,"d":"0.96 kn"}},{"$f":"IFERROR(StolZaHranu[[#This Row],[TROŠAK PO PORCIJI]]*StolZaHranu[[#This Row],[PORCIJA PO DJETETU]],\"\")","v":{"v":0,"d":"0.00 kn"}},{"$f":"IFERROR(StolZaHranu[[#This Row],[TROŠAK PO PORCIJI]]*StolZaHranu[[#This Row],[PORCIJA PO ODRASLOM]],\"\")","v":{"v":1.9230769230769231,"d":"1.92 kn"}}]
[null,"Torta",{"v":75,"d":"75.00 kn"},1,1,{"$f":"(StolZaHranu[[#This Row],[PORCIJA PO DJETETU]]*UkupnoDjece)+(StolZaHranu[[#This Row],[PORCIJA PO ODRASLOM]]*UkupnoOdraslih)","v":46},{"$f":"IFERROR(StolZaHranu[[#This Row],[UKUPNI TROŠAK]]/StolZaHranu[[#This Row],[UKUPNO PORCIJA]],\"\")","v":{"v":1.6304347826086956,"d":"1.63 kn"}},{"$f":"IFERROR(StolZaHranu[[#This Row],[TROŠAK PO PORCIJI]]*StolZaHranu[[#This Row],[PORCIJA PO DJETETU]],\"\")","v":{"v":1.6304347826086956,"d":"1.63 kn"}},{"$f":"IFERROR(StolZaHranu[[#This Row],[TROŠAK PO PORCIJI]]*StolZaHranu[[#This Row],[PORCIJA PO ODRASLOM]],\"\")","v":{"v":1.6304347826086956,"d":"1.63 kn"}},"Naručiti iz lokalne pekarnice"]
[null,"Sladoled",{"v":20,"d":"20.00 kn"},1,1.5,{"$f":"(StolZaHranu[[#This Row],[PORCIJA PO DJETETU]]*UkupnoDjece)+(StolZaHranu[[#This Row],[PORCIJA PO ODRASLOM]]*UkupnoOdraslih)","v":59},{"$f":"IFERROR(StolZaHranu[[#This Row],[UKUPNI TROŠAK]]/StolZaHranu[[#This Row],[UKUPNO PORCIJA]],\"\")","v":{"v":0.3389830508474576,"d":"0.34 kn"}},{"$f":"IFERROR(StolZaHranu[[#This Row],[TROŠAK PO PORCIJI]]*StolZaHranu[[#This Row],[PORCIJA PO DJETETU]],\"\")","v":{"v":0.3389830508474576,"d":"0.34 kn"}},{"$f":"IFERROR(StolZaHranu[[#This Row],[TROŠAK PO PORCIJI]]*StolZaHranu[[#This Row],[PORCIJA PO ODRASLOM]],\"\")","v":{"v":0.5084745762711864,"d":"0.51 kn"}}]
[null,"Šalice s pudingom",{"v":15,"d":"15.00 kn"},1,0,{"$f":"(StolZaHranu[[#This Row],[PORCIJA PO DJETETU]]*UkupnoDjece)+(StolZaHranu[[#This Row],[PORCIJA PO ODRASLOM]]*UkupnoOdraslih)","v":20},{"$f":"IFERROR(StolZaHranu[[#This Row],[UKUPNI TROŠAK]]/StolZaHranu[[#This Row],[UKUPNO PORCIJA]],\"\")","v":{"v":0.75,"d":"0.75 kn"}},{"$f":"IFERROR(StolZaHranu[[#This Row],[TROŠAK PO PORCIJI]]*StolZaHranu[[#This Row],[PORCIJA PO DJETETU]],\"\")","v":{"v":0.75,"d":"0.75 kn"}},{"$f":"IFERROR(StolZaHranu[[#This Row],[TROŠAK PO PORCIJI]]*StolZaHranu[[#This Row],[PORCIJA PO ODRASLOM]],\"\")","v":{"v":0,"d":"0.00 kn"}},"Kupiti gotove čašice: vanilija i čokolada"]
[null,"Punjene gljive",{"v":32,"d":"32.00 kn"},1,2,{"$f":"(StolZaHranu[[#This Row],[PORCIJA PO DJETETU]]*UkupnoDjece)+(StolZaHranu[[#This Row],[PORCIJA PO ODRASLOM]]*UkupnoOdraslih)","v":72},{"$f":"IFERROR(StolZaHranu[[#This Row],[UKUPNI TROŠAK]]/StolZaHranu[[#This Row],[UKUPNO PORCIJA]],\"\")","v":{"v":0.4444444444444444,"d":"0.44 kn"}},{"$f":"IFERROR(StolZaHranu[[#This Row],[TROŠAK PO PORCIJI]]*StolZaHranu[[#This Row],[PORCIJA PO DJETETU]],\"\")","v":{"v":0.4444444444444444,"d":"0.44 kn"}},{"$f":"IFERROR(StolZaHranu[[#This Row],[TROŠAK PO PORCIJI]]*StolZaHranu[[#This Row],[PORCIJA PO ODRASLOM]],\"\")","v":{"v":0.8888888888888888,"d":"0.89 kn"}},"Šampinjoni punjeni svježim sirom i kobasicama"]
[null,"Brusketi",{"v":22,"d":"22.00 kn"},0,3,{"$f":"(StolZaHranu[[#This Row],[PORCIJA PO DJETETU]]*UkupnoDjece)+(StolZaHranu[[#This Row],[PORCIJA PO ODRASLOM]]*UkupnoOdraslih)","v":78},{"$f":"IFERROR(StolZaHranu[[#This Row],[UKUPNI TROŠAK]]/StolZaHranu[[#This Row],[UKUPNO PORCIJA]],\"\")","v":{"v":0.28205128205128205,"d":"0.28 kn"}},{"$f":"IFERROR(StolZaHranu[[#This Row],[TROŠAK PO PORCIJI]]*StolZaHranu[[#This Row],[PORCIJA PO DJETETU]],\"\")","v":{"v":0,"d":"0.00 kn"}},{"$f":"IFERROR(StolZaHranu[[#This Row],[TROŠAK PO PORCIJI]]*StolZaHranu[[#This Row],[PORCIJA PO ODRASLOM]],\"\")","v":{"v":0.8461538461538461,"d":"0.85 kn"}},"Rajčica i bosiljak"]
[null,"Dimljeni losos",{"v":50,"d":"50.00 kn"},1,2,{"$f":"(StolZaHranu[[#This Row],[PORCIJA PO DJETETU]]*UkupnoDjece)+(StolZaHranu[[#This Row],[PORCIJA PO ODRASLOM]]*UkupnoOdraslih)","v":72},{"$f":"IFERROR(StolZaHranu[[#This Row],[UKUPNI TROŠAK]]/StolZaHranu[[#This Row],[UKUPNO PORCIJA]],\"\")","v":{"v":0.6944444444444444,"d":"0.69 kn"}},{"$f":"IFERROR(StolZaHranu[[#This Row],[TROŠAK PO PORCIJI]]*StolZaHranu[[#This Row],[PORCIJA PO DJETETU]],\"\")","v":{"v":0.6944444444444444,"d":"0.69 kn"}},{"$f":"IFERROR(StolZaHranu[[#This Row],[TROŠAK PO PORCIJI]]*StolZaHranu[[#This Row],[PORCIJA PO ODRASLOM]],\"\")","v":{"v":1.3888888888888888,"d":"1.39 kn"}}]
[null,"Mini peciva",{"v":20,"d":"20.00 kn"},1,2,{"$f":"(StolZaHranu[[#This Row],[PORCIJA PO DJETETU]]*UkupnoDjece)+(StolZaHranu[[#This Row],[PORCIJA PO ODRASLOM]]*UkupnoOdraslih)","v":72},{"$f":"IFERROR(StolZaHranu[[#This Row],[UKUPNI TROŠAK]]/StolZaHranu[[#This Row],[UKUPNO PORCIJA]],\"\")","v":{"v":0.2777777777777778,"d":"0.28 kn"}},{"$f":"IFERROR(StolZaHranu[[#This Row],[TROŠAK PO PORCIJI]]*StolZaHranu[[#This Row],[PORCIJA PO DJETETU]],\"\")","v":{"v":0.2777777777777778,"d":"0.28 kn"}},{"$f":"IFERROR(StolZaHranu[[#This Row],[TROŠAK PO PORCIJI]]*StolZaHranu[[#This Row],[PORCIJA PO ODRASLOM]],\"\")","v":{"v":0.5555555555555556,"d":"0.56 kn"}},"4 vrećice – miješano"]
[null,"Sirni namaz",{"v":10,"d":"10.00 kn"},1,2,{"$f":"(StolZaHranu[[#This Row],[PORCIJA PO DJETETU]]*UkupnoDjece)+(StolZaHranu[[#This Row],[PORCIJA PO ODRASLOM]]*UkupnoOdraslih)","v":72},{"$f":"IFERROR(StolZaHranu[[#This Row],[UKUPNI TROŠAK]]/StolZaHranu[[#This Row],[UKUPNO PORCIJA]],\"\")","v":{"v":0.1388888888888889,"d":"0.14 kn"}},{"$f":"IFERROR(StolZaHranu[[#This Row],[TROŠAK PO PORCIJI]]*StolZaHranu[[#This Row],[PORCIJA PO DJETETU]],\"\")","v":{"v":0.1388888888888889,"d":"0.14 kn"}},{"$f":"IFERROR(StolZaHranu[[#This Row],[TROŠAK PO PORCIJI]]*StolZaHranu[[#This Row],[PORCIJA PO ODRASLOM]],\"\")","v":{"v":0.2777777777777778,"d":"0.28 kn"}},"2 velike posude"]
[null,"Kapare",{"v":12,"d":"12.00 kn"},1,2,{"$f":"(StolZaHranu[[#This Row],[PORCIJA PO DJETETU]]*UkupnoDjece)+(StolZaHranu[[#This Row],[PORCIJA PO ODRASLOM]]*UkupnoOdraslih)","v":72},{"$f":"IFERROR(StolZaHranu[[#This Row],[UKUPNI TROŠAK]]/StolZaHranu[[#This Row],[UKUPNO PORCIJA]],\"\")","v":{"v":0.16666666666666666,"d":"0.17 kn"}},{"$f":"IFERROR(StolZaHranu[[#This Row],[TROŠAK PO PORCIJI]]*StolZaHranu[[#This Row],[PORCIJA PO DJETETU]],\"\")","v":{"v":0.16666666666666666,"d":"0.17 kn"}},{"$f":"IFERROR(StolZaHranu[[#This Row],[TROŠAK PO PORCIJI]]*StolZaHranu[[#This Row],[PORCIJA PO ODRASLOM]],\"\")","v":{"v":0.3333333333333333,"d":"0.33 kn"}},"3 staklenke"]
[null,"Pileća krila",{"v":45,"d":"45.00 kn"},2,4,{"$f":"(StolZaHranu[[#This Row],[PORCIJA PO DJETETU]]*UkupnoDjece)+(StolZaHranu[[#This Row],[PORCIJA PO ODRASLOM]]*UkupnoOdraslih)","v":144},{"$f":"IFERROR(StolZaHranu[[#This Row],[UKUPNI TROŠAK]]/StolZaHranu[[#This Row],[UKUPNO PORCIJA]],\"\")","v":{"v":0.3125,"d":"0.31 kn"}},{"$f":"IFERROR(StolZaHranu[[#This Row],[TROŠAK PO PORCIJI]]*StolZaHranu[[#This Row],[PORCIJA PO DJETETU]],\"\")","v":{"v":0.625,"d":"0.63 kn"}},{"$f":"IFERROR(StolZaHranu[[#This Row],[TROŠAK PO PORCIJI]]*StolZaHranu[[#This Row],[PORCIJA PO ODRASLOM]],\"\")","v":{"v":1.25,"d":"1.25 kn"}},"Kupiti u lokalnoj trgovini"]
[null,"Namaz od slanutka",{"v":10,"d":"10.00 kn"},4,6,{"$f":"(StolZaHranu[[#This Row],[PORCIJA PO DJETETU]]*UkupnoDjece)+(StolZaHranu[[#This Row],[PORCIJA PO ODRASLOM]]*UkupnoOdraslih)","v":236},{"$f":"IFERROR(StolZaHranu[[#This Row],[UKUPNI TROŠAK]]/StolZaHranu[[#This Row],[UKUPNO PORCIJA]],\"\")","v":{"v":0.0423728813559322,"d":"0.04 kn"}},{"$f":"IFERROR(StolZaHranu[[#This Row],[TROŠAK PO PORCIJI]]*StolZaHranu[[#This Row],[PORCIJA PO DJETETU]],\"\")","v":{"v":0.1694915254237288,"d":"0.17 kn"}},{"$f":"IFERROR(StolZaHranu[[#This Row],[TROŠAK PO PORCIJI]]*StolZaHranu[[#This Row],[PORCIJA PO ODRASLOM]],\"\")","v":{"v":0.2542372881355932,"d":"0.25 kn"}},"Pripremiti večer prije"]
[null,"Čips s parmezanom",{"v":14,"d":"14.00 kn"},4,6,{"$f":"(StolZaHranu[[#This Row],[PORCIJA PO DJETETU]]*UkupnoDjece)+(StolZaHranu[[#This Row],[PORCIJA PO ODRASLOM]]*UkupnoOdraslih)","v":236},{"$f":"IFERROR(StolZaHranu[[#This Row],[UKUPNI TROŠAK]]/StolZaHranu[[#This Row],[UKUPNO PORCIJA]],\"\")","v":{"v":0.059322033898305086,"d":"0.06 kn"}},{"$f":"IFERROR(StolZaHranu[[#This Row],[TROŠAK PO PORCIJI]]*StolZaHranu[[#This Row],[PORCIJA PO DJETETU]],\"\")","v":{"v":0.23728813559322035,"d":"0.24 kn"}},{"$f":"IFERROR(StolZaHranu[[#This Row],[TROŠAK PO PORCIJI]]*StolZaHranu[[#This Row],[PORCIJA PO ODRASLOM]],\"\")","v":{"v":0.3559322033898305,"d":"0.36 kn"}},"Pripremiti večer prije"]
[null,"Miješano povrće",{"v":30,"d":"30.00 kn"},4,10,{"$f":"(StolZaHranu[[#This Row],[PORCIJA PO DJETETU]]*UkupnoDjece)+(StolZaHranu[[#This Row],[PORCIJA PO ODRASLOM]]*UkupnoOdraslih)","v":340},{"$f":"IFERROR(StolZaHranu[[#This Row],[UKUPNI TROŠAK]]/StolZaHranu[[#This Row],[UKUPNO PORCIJA]],\"\")","v":{"v":0.08823529411764706,"d":"0.09 kn"}},{"$f":"IFERROR(StolZaHranu[[#This Row],[TROŠAK PO PORCIJI]]*StolZaHranu[[#This Row],[PORCIJA PO DJETETU]],\"\")","v":{"v":0.35294117647058826,"d":"0.35 kn"}},{"$f":"IFERROR(StolZaHranu[[#This Row],[TROŠAK PO PORCIJI]]*StolZaHranu[[#This Row],[PORCIJA PO ODRASLOM]],\"\")","v":{"v":0.8823529411764707,"d":"0.88 kn"}},"Mrkva, celer, brokula, cvjetača, crvena i zelena paprika"]
[null,"Namaz od sira",{"v":15,"d":"15.00 kn"},5,10,{"$f":"(StolZaHranu[[#This Row],[PORCIJA PO DJETETU]]*UkupnoDjece)+(StolZaHranu[[#This Row],[PORCIJA PO ODRASLOM]]*UkupnoOdraslih)","v":360},{"$f":"IFERROR(StolZaHranu[[#This Row],[UKUPNI TROŠAK]]/StolZaHranu[[#This Row],[UKUPNO PORCIJA]],\"\")","v":{"v":0.041666666666666664,"d":"0.04 kn"}},{"$f":"IFERROR(StolZaHranu[[#This Row],[TROŠAK PO PORCIJI]]*StolZaHranu[[#This Row],[PORCIJA PO DJETETU]],\"\")","v":{"v":0.20833333333333331,"d":"0.21 kn"}},{"$f":"IFERROR(StolZaHranu[[#This Row],[TROŠAK PO PORCIJI]]*StolZaHranu[[#This Row],[PORCIJA PO ODRASLOM]],\"\")","v":{"v":0.41666666666666663,"d":"0.42 kn"}},"Miješano: sirni namaz, tvrdi sir s orasima"]
[null,"Krekeri",{"v":25,"d":"25.00 kn"},5,10,{"$f":"(StolZaHranu[[#This Row],[PORCIJA PO DJETETU]]*UkupnoDjece)+(StolZaHranu[[#This Row],[PORCIJA PO ODRASLOM]]*UkupnoOdraslih)","v":360},{"$f":"IFERROR(StolZaHranu[[#This Row],[UKUPNI TROŠAK]]/StolZaHranu[[#This Row],[UKUPNO PORCIJA]],\"\")","v":{"v":0.06944444444444445,"d":"0.07 kn"}},{"$f":"IFERROR(StolZaHranu[[#This Row],[TROŠAK PO PORCIJI]]*StolZaHranu[[#This Row],[PORCIJA PO DJETETU]],\"\")","v":{"v":0.3472222222222222,"d":"0.35 kn"}},{"$f":"IFERROR(StolZaHranu[[#This Row],[TROŠAK PO PORCIJI]]*StolZaHranu[[#This Row],[PORCIJA PO ODRASLOM]],\"\")","v":{"v":0.6944444444444444,"d":"0.69 kn"}},"Miješano"]
[null,"Ukupno",{"$f":"SUBTOTAL(109,StolZaHranu[UKUPNI TROŠAK])","v":{"v":475,"d":"475.00 kn"}},{"$f":"SUBTOTAL(109,StolZaHranu[PORCIJA PO DJETETU])","v":34.5},{"$f":"SUBTOTAL(109,StolZaHranu[PORCIJA PO ODRASLOM])","v":65.5},{"$f":"SUBTOTAL(109,StolZaHranu[UKUPNO PORCIJA])","v":2393},{"$f":"SUBTOTAL(109,StolZaHranu[TROŠAK PO PORCIJI])","v":{"v":6.915706603622084,"d":"6.92 kn"}},{"$f":"SUBTOTAL(109,StolZaHranu[TROŠAK PO DJETETU])","v":{"v":7.252884190656953,"d":"7.25 kn"}},{"$f":"SUBTOTAL(109,StolZaHranu[TROŠAK PO ODRASLOM])","v":{"v":12.690089084110037,"d":"12.69 kn"}}]

{"sheet":"Ostale potrepštine","index":3,"n_rows":30,"n_cols":5,"rows_kept":30,"merged":[[14,1,14,4],[22,1,22,4]]}
[]
[]
[null,"Ostale potrepštine"]
[]
[]
[null,"Oprema i potrepštine","Cijena","Kupljeno","Napomene"]
[null,"Najam sobe/sale",{"v":250,"d":"250.00 kn"},"Da"]
[null,"Stolnjaci",{"v":30,"d":"30.00 kn"},"Da","Najam"]
[null,"Stolovi i stolci",{"v":0,"d":"0.00 kn"},null,"Obuhvaćeno najmom sale"]
[null,"Podlošci za pića",{"v":25,"d":"25.00 kn"}]
[null,"Ubrusi",{"v":20,"d":"20.00 kn"},null,"Najam"]
[null,"Konobari",{"v":50,"d":"50.00 kn"},null,"Najam"]
[null,"Čaše",{"v":25,"d":"25.00 kn"},null,"Najam"]
[null,"Ukupno",{"$f":"SUBTOTAL(109,TablicaProračuna1[Cijena])","v":{"v":400,"d":"400.00 kn"}}]
[]
[]
[null,"Ukrasi","Cijena","Kupljeno","Napomene"]
[null,"Baloni",{"v":25,"d":"25.00 kn"}]
[null,"Spremnik s helijem",{"v":50,"d":"50.00 kn"},null,"Najam"]
[null,"Stolni aranžmani",{"v":100,"d":"100.00 kn"},"Da","10 ukupno"]
[null,"Staklene vaze",{"v":0,"d":"0.00 kn"},null,"Posuđeno od Sandre"]
[null,"Ukupno",{"$f":"SUBTOTAL(109,TablicaProračuna2[Cijena])","v":{"v":175,"d":"175.00 kn"}}]
[]
[]
[null,"Ostalo","Cijena","Kupljeno","Napomene"]
[null,"Pozivnice",{"v":50,"d":"50.00 kn"},"Da"]
[null,"Poštarina",{"v":60,"d":"60.00 kn"},"Da"]
[null,"Fotograf",{"v":125,"d":"125.00 kn"},null,"2 sata (14.00 – 16.00)"]
[null,"Pokloni za goste",{"v":50,"d":"50.00 kn"}]
[null,"Ukupno",{"$f":"SUBTOTAL(109,TablicaProračuna3[Cijena])","v":{"v":285,"d":"285.00 kn"}}]

{"sheet":"Rešetka rasporeda sjedenja","index":4,"n_rows":43,"n_cols":34,"rows_kept":43,"merged":[[35,0,35,17],[35,19,35,33]]}
["Raspored sjedenja"]
{"$rows_empty":33}
[{"$nulls":33},"*1 kvadrat = otprilike 0,1 kvadratni metar"]
["Napomene",{"$nulls":18},{"$f":"\" Ukupno potvrđenih gostiju: \"&PotvrđeniGosti","v":" Ukupno potvrđenih gostiju: 46"}]
[{"$nulls":19},"Možete koristiti bilo koji od sljedećih rasporeda stolova:"]
[{"$nulls":20},{"$f":"ROUNDUP(PotvrđeniGosti/6,0)&\" okrugli stolovi od 137 cm (za šest osoba)\"","v":"8 okrugli stolovi od 137 cm (za šest osoba)"}]
[{"$nulls":20},{"$f":"ROUNDUP(PotvrđeniGosti/8,0) &\" okrugli stolovi od 150 cm (za osam osoba)\"","v":"6 okrugli stolovi od 150 cm (za osam osoba)"}]
[{"$nulls":20},{"$f":"ROUNDUP(PotvrđeniGosti/10,0)&\" okrugli stolovi od 183 cm (za deset osoba)\"","v":"5 okrugli stolovi od 183 cm (za deset osoba)"}]
[{"$nulls":20},{"$f":"ROUNDUP(PotvrđeniGosti/6,0)& \" četvrtasti stolovi 76 x 183 cm (za šest osoba)\"","v":"8 četvrtasti stolovi 76 x 183 cm (za šest osoba)"}]
[{"$nulls":20},{"$f":"ROUNDUP(PotvrđeniGosti/8,0)&\"četvrtasti stolovi 76 x 255 cm (za osam osoba)\"","v":"6četvrtasti stolovi 76 x 255 cm (za osam osoba)"}]
[{"$nulls":19},"(željeni prostor između stolova: 100 cm)"]